bitfinex/quotes_SOLUSD_20250310
["timestamp","ask_amount","ask_price","bid_price","bid_amount"]
[1741575498317,23.81557064,127.89,127.85,89.3212]
[1741575498514,23.81557064,127.9,127.85,89.3212]
[1741575498819,23.81557064,127.9,127.86,7.48]
[1741575499621,23.81557064,127.9,127.87,7.8204]
[1741575500012,43.81557064,127.91,127.87,7.8204]
[1741575500407,35.30551865,127.91,127.87,7.8204]
[1741575500612,15.30551865,127.9,127.87,7.8204]
[1741575501039,15.30551865,127.91,127.87,7.8204]
[1741575501244,15.30551865,127.93,127.87,42.67701865]
[1741575501412,15.30551865,127.93,127.88,15.30551865]
[1741575501740,4.6655779,127.9,127.89,7.8192]
[1741575503209,4.6655779,127.9,127.89,191.62451865]
[1741575504311,24.39959298,127.95,127.89,219.76659298]
[1741575504514,24.39959298,127.95,127.89,195.867]
[1741575504714,0.5,127.95,127.91,23.89959298]
[1741575504903,0.5,127.95,127.93,23.89959298]
[1741575505105,0.5,127.95,127.93,192.39939298]
[1741575505710,4.67039917,127.94,127.93,192.39939298]
[1741575505908,4.67039917,127.94,127.93,200.21609298]
[1741575507604,0.5,127.95,127.93,200.21609298]
[1741575507819,0.5,127.95,127.94,31.71569298]
[1741575508025,0.5,127.95,127.94,7.8161]
[1741575509018,5.16503872,127.95,127.94,7.8161]
[1741575510414,5.16503872,127.95,127.93,192.39939298]
[1741575510611,5.16503872,127.95,127.93,168.4998]
[1741575511438,4.66503872,127.94,127.93,168.4998]
[1741575514414,28.5646317,127.94,127.9,7.8183]
[1741575514723,23.89959298,127.91,127.88,87.0]
[1741575515036,23.89959298,127.9,127.87,81.4998]
[1741575515224,23.89959298,127.89,127.86,102.3638]
[1741575515421,23.89959298,127.89,127.86,15.3638]
[1741575515632,28.5646317,127.9,127.86,15.3638]
[1741575516425,4.66503872,127.9,127.86,39.26339298]
[1741575516625,23.89959298,127.92,127.86,39.26339298]
[1741575516953,23.89959298,127.92,127.86,207.76319298]
[1741575517117,4.65538542,127.89,127.86,207.76319298]
[1741575517320,4.65538542,127.89,127.86,227.31579298]
[1741575517519,4.65538542,127.89,127.88,23.89959298]
[1741575517914,4.65538542,127.89,127.88,192.39939298]
[1741575518434,24.39959298,127.95,127.88,192.39939298]
[1741575518636,24.39959298,127.95,127.9,23.89959298]
[1741575518845,0.5,127.95,127.91,31.37959298]
[1741575519225,0.5,127.95,127.92,23.89959298]
[1741575519723,4.65547367,127.94,127.91,31.37959298]
[1741575520735,4.65547367,127.94,127.92,7.8173]
[1741575520935,0.5,127.95,127.92,51.26029298]
[1741575521119,0.5,127.95,127.94,23.89959298]
[1741575521545,0.5,127.95,127.93,23.89959298]
[1741575521932,0.5,127.95,127.93,192.39939298]
[1741575522138,0.5,127.95,127.94,23.89959298]
[1741575522323,0.5,127.95,127.93,192.39939298]
[1741575523037,0.5,127.95,127.94,7.8161]
[1741575525222,5.15849481,127.95,127.94,7.8161]
[1741575526141,5.15849481,127.95,127.93,168.4998]
[1741575526329,29.05808779,127.95,127.93,168.4998]
[1741575527248,29.05808779,127.95,127.92,7.8171]
[1741575527653,4.65849481,127.94,127.92,7.8171]
[1741575528046,4.65849481,127.94,127.91,96.7976]
[1741575528243,28.55808779,127.94,127.91,15.2978]
[1741575528728,28.55808779,127.94,127.91,7.48]
[1741575528927,4.65849481,127.93,127.91,7.48]
[1741575529528,4.65849481,127.93,127.91,15.2979]
[1741575530154,4.65849481,127.92,127.91,15.2979]
[1741575530342,4.65849481,127.92,127.91,39.19749298]
[1741575531055,4.65849481,127.92,127.91,351.19749298]
[1741575531549,0.5,127.95,127.91,351.19749298]
[1741575531735,0.5,127.95,127.92,23.89959298]
[1741575532433,0.5,127.95,127.93,23.89959298]
[1741575532634,4.6611958,127.94,127.93,23.89959298]
[1741575532833,4.6611958,127.94,127.92,23.89959298]
[1741575533554,4.6611958,127.94,127.91,183.7977]
[1741575533756,24.39959298,127.95,127.91,183.7977]
[1741575534254,24.39959298,127.95,127.91,176.3177]
[1741575535054,0.5,127.95,127.91,176.3177]
[1741575535432,0.53,127.95,127.91,176.3177]
[1741575535638,0.53,127.95,127.92,23.89959298]
[1741575535944,0.53,127.95,127.93,23.89959298]
[1741575536153,4.66505825,127.94,127.93,23.89959298]
[1741575536359,4.66505825,127.94,127.92,23.89959298]
[1741575537138,4.66505825,127.93,127.92,23.89959298]
[1741575537956,4.66505825,127.93,127.92,31.71689298]
[1741575538560,4.66505825,127.94,127.92,31.71689298]
[1741575538754,4.66505825,127.94,127.93,31.71629298]
[1741575538966,4.66505825,127.94,127.93,15.2967]
[1741575544050,4.66505825,127.94,127.93,183.7965]
[1741575544366,5.825e-05,127.95,127.94,18.64964886]
[1741575544569,5.825e-05,127.95,127.94,211.04904184]
[1741575545543,5.825e-05,127.96,127.94,211.04904184]
[1741575545849,5.825e-05,127.96,127.95,23.89959298]
[1741575546059,5.825e-05,127.97,127.96,7.8149]
[1741575546256,5.825e-05,127.97,127.96,50.36414184]
[1741575546464,5.825e-05,127.97,127.96,218.86394184]
[1741575547468,5.825e-05,128.0,127.99,20.0]
[1741575547717,5.825e-05,128.0,127.99,238.50904184]
[1741575548577,5.825e-05,128.0,127.99,246.32214184]
[1741575550153,0.5,128.03,128.02,23.89959298]
[1741575550354,0.5,128.03,128.02,168.49974175]
[1741575550659,25.92879298,128.03,127.99,7.46]
[1741575550847,23.89959298,128.0,127.96,81.49974175]
[1741575551066,23.89959298,127.98,127.94,176.31564175]
[1741575551260,23.89959298,127.97,127.94,81.49974175]
[1741575553266,23.89959298,127.98,127.94,89.31584175]
[1741575553467,23.89959298,127.99,127.94,89.31584175]
[1741575553776,23.89959298,127.99,127.94,113.21543473]
[1741575554165,23.89959298,128.0,127.95,23.89959298]
[1741575554586,23.89959298,128.0,127.96,7.8149]
[1741575554774,23.89959298,127.99,127.94,200.21533473]
[1741575554963,23.89959298,127.98,127.94,176.31574175]
[1741575556688,32.54144886,128.02,127.94,200.21533473]
[1741575556865,23.89959298,127.99,127.94,200.21533473]
[1741575557266,23.89959298,128.0,127.95,23.89959298]
[1741575557562,23.89959298,128.01,127.95,23.89959298]
[1741575557764,23.89959298,128.0,127.95,23.89959298]
[1741575558289,23.89959298,128.0,127.96,7.8149]
[1741575558780,0.03,127.98,127.96,7.8149]
[1741575559393,0.03,127.98,127.95,7.8153]
[1741575559594,23.92959298,127.98,127.94,168.49974175]
[1741575559791,23.89959298,127.96,127.94,168.49974175]
[1741575559995,23.89959298,127.96,127.94,81.49974175]
[1741575560513,23.89959298,127.96,127.93,94.46]
[1741575560690,23.89959298,127.95,127.92,87.0]
[1741575561004,14.0523,127.97,127.92,87.0]
[1741575561005,23.89959298,127.94,127.92,87.0]
[1741575561714,23.89959298,127.94,127.92,168.49974175]
[1741575562085,23.89959298,127.93,127.92,168.49974175]
[1741575562284,23.89959298,127.93,127.9,186.16]
[1741575562488,23.89959298,127.93,127.88,199.85933473]
[1741575562489,23.89959298,127.93,127.89,7.8191]
[1741575562732,23.89959298,127.93,127.88,207.67893473]
[1741575562905,23.89959298,127.93,127.88,519.67893473]
[1741575563288,23.89959298,127.92,127.88,183.77934175]
[1741575563487,23.89959298,127.92,127.88,176.31934175]
[1741575564217,23.89959298,127.93,127.88,200.21893473]
[1741575566218,23.89959298,127.91,127.88,7.8196]
[1741575566819,23.89959298,127.91,127.87,7.8834]
[1741575567136,23.89959298,127.92,127.87,31.78299298]
[1741575567747,23.89959298,127.92,127.87,7.8834]
[1741575567916,1.5904,127.93,127.87,51.33409298]
[1741575568118,23.89959298,127.94,127.89,23.89959298]
[1741575568343,23.89959298,127.94,127.89,192.39933473]
[1741575569342,23.89959298,127.9,127.87,0.063]
[1741575569639,23.89959298,127.92,127.87,0.063]
[1741575569640,23.89959298,127.89,127.87,0.063]
[1741575570203,23.89959298,127.89,127.88,0.063]
[1741575573411,9.4419,127.91,127.88,0.063]
[1741575573726,23.89959298,127.89,127.88,0.063]
[1741575575925,23.89959298,127.9,127.88,0.063]
[1741575576126,23.89959298,127.89,127.88,0.063]
[1741575577675,23.89959298,127.9,127.88,0.063]
[1741575577825,6.6441,127.92,127.88,0.063]
[1741575577826,30.54369298,127.92,127.88,0.063]
[1741575578027,23.89959298,127.92,127.88,168.56274175]
[1741575578252,23.89959298,127.91,127.88,168.56274175]
[1741575578567,8.0884,127.95,127.88,168.56274175]
[1741575578730,23.89959298,127.92,127.88,81.56274175]
[1741575579761,23.89959298,127.92,127.89,7.8192]
[1741575582160,23.89959298,127.91,127.89,7.8192]
[1741575582751,23.89959298,127.93,127.89,176.31894175]
[1741575582965,23.89959298,127.92,127.89,89.31894175]
[1741575583265,23.89959298,127.91,127.89,81.49974175]
[1741575584559,23.89959298,127.92,127.9,7.8186]
[1741575585874,23.89959298,127.93,127.9,7.8186]
[1741575586234,23.89959298,127.92,127.9,7.8186]
[1741575586744,23.89959298,127.91,127.89,81.49974175]
[1741575586948,23.89959298,127.91,127.88,94.523]
[1741575587154,23.89959298,127.91,127.88,7.523]
[1741575587367,23.89959298,127.91,127.88,15.3427]
[1741575588570,23.89959298,127.92,127.88,15.3427]
[1741575589373,8.0884,127.95,127.88,15.3427]
[1741575589547,23.89959298,127.93,127.88,183.84244175]
[1741575589747,23.89959298,127.93,127.88,203.39194175]
[1741575590057,23.89959298,127.93,127.88,515.39194175]
[1741575590460,23.89959298,127.92,127.88,495.84244175]
[1741575593069,23.89959298,127.92,127.88,183.84244175]
[1741575594740,23.89959298,127.91,127.88,176.02274175]
[1741575595844,23.89959298,127.91,127.88,183.84244175]
[1741575598478,23.89959298,127.91,127.88,96.84244175]
[1741575599777,23.89959298,127.92,127.88,96.84244175]
[1741575601293,23.89959298,127.91,127.88,96.84244175]
[1741575601789,23.89959298,127.9,127.88,0.063]
[1741575601993,23.89959298,127.89,127.88,0.063]
[1741575602371,15.31098455,127.89,127.88,0.063]
[1741575602968,23.13018455,127.89,127.88,0.063]
[1741575603192,15.31098455,127.89,127.88,0.063]
[1741575603769,5.88019391,127.91,127.88,0.063]
[1741575603967,15.31098455,127.9,127.88,0.063]
[1741575604372,23.91802282,127.9,127.88,0.063]
[1741575604882,23.91802282,127.89,127.88,0.063]
[1741575606902,7.9566,127.93,127.88,0.063]
[1741575607098,23.91802282,127.91,127.88,0.063]
[1741575607485,6.4528,127.93,127.88,0.063]
[1741575607885,23.91802282,127.91,127.88,0.063]
[1741575608206,23.91802282,127.9,127.88,0.063]
[1741575608383,23.91802282,127.91,127.88,0.063]
[1741575610006,23.91802282,127.92,127.88,0.063]
[1741575610986,23.91802282,127.89,127.88,0.063]
[1741575611897,31.73722282,127.89,127.88,0.063]
[1741575612871,31.73722282,127.89,127.87,0.063]
[1741575613099,66.4856945,127.88,127.87,0.063]
[1741575613276,90.2192,127.89,127.87,0.063]
[1741575613603,23.91802282,127.88,127.87,0.063]
[1741575615695,31.73782282,127.88,127.87,0.063]
[1741575615903,74.3054945,127.88,127.87,0.063]
[1741575616095,50.38747168,127.88,127.87,0.063]
[1741575616277,23.91802282,127.88,127.87,0.063]
[1741575617182,31.73782282,127.88,127.87,0.063]
[1741575617783,20.0,127.88,127.87,0.063]
[1741575618001,43.91802282,127.88,127.87,0.063]
[1741575618789,62.56767168,127.88,127.87,0.063]
[1741575618990,86.4856945,127.88,127.87,0.063]
[1741575619204,20.0,127.88,127.87,0.063]
[1741575619384,43.91802282,127.88,127.87,0.063]
[1741575619584,51.73782282,127.88,127.87,0.063]
[1741575621002,43.91802282,127.88,127.87,0.063]
[1741575621179,23.91802282,127.89,127.87,0.063]
[1741575621883,23.91802282,127.88,127.87,0.063]
[1741575624385,75.8480945,127.88,127.87,0.063]
[1741575624590,20.0,127.84,127.83,0.505]
[1741575624815,43.91802282,127.84,127.83,0.505]
[1741575625200,62.56767168,127.84,127.83,0.505]
[1741575625597,70.38987168,127.84,127.83,0.505]
[1741575627479,43.91802282,127.84,127.83,0.505]
[1741575627986,23.91802282,127.85,127.83,0.505]
[1741575628204,20.0,127.84,127.83,0.505]
[1741575628402,23.91802282,127.85,127.83,0.505]
[1741575628708,43.91802282,127.84,127.83,0.505]
[1741575629806,31.74022282,127.84,127.83,0.505]
[1741575631303,50.38987168,127.84,127.83,0.505]
[1741575634081,23.91802282,127.84,127.83,0.505]
[1741575634494,23.91802282,127.86,127.83,0.505]
[1741575634715,20.0,127.84,127.83,0.505]
[1741575635087,0.03,127.88,127.83,8.3277]
[1741575635289,23.94802282,127.88,127.83,33.84772282]
[1741575636026,0.03,127.88,127.83,9.9297]
[1741575636207,23.91802282,127.84,127.83,0.505]
[1741575637220,31.74022282,127.84,127.83,0.505]
[1741575637990,50.38987168,127.84,127.83,0.505]
[1741575639031,31.74022282,127.84,127.83,0.505]
[1741575639235,23.91802282,127.84,127.83,0.505]
[1741575639535,23.91802282,127.85,127.83,0.505]
[1741575639731,23.91802282,127.87,127.83,8.3277]
[1741575639908,0.03,127.88,127.84,23.91802282]
[1741575640094,0.03,127.88,127.84,31.35802282]
[1741575640295,0.03,127.88,127.84,45.71644365]
[1741575640905,0.03,127.88,127.85,38.27644365]
[1741575641225,12.24605853,127.89,127.87,56.92609251]
[1741575641424,12.24605853,127.89,127.88,65.01969251]
[1741575641634,38.27644365,127.95,127.88,65.01969251]
[1741575641816,38.27644365,127.93,127.89,7.44]
[1741575643132,38.27644365,127.94,127.89,45.71644365]
[1741575643328,38.27644365,127.94,127.89,53.53554365]
[1741575643844,38.27644365,127.95,127.9,38.27644365]
[1741575644338,58.27644365,127.93,127.89,7.44]
[1741575644825,20.0,127.93,127.89,7.44]
[1741575645834,38.27644365,127.93,127.89,7.44]
[1741575646033,82.4,127.97,127.9,38.27644365]
[1741575646235,38.27644365,127.95,127.9,38.27644365]
[1741575646433,20.0,127.94,127.9,38.27644365]
[1741575646603,20.0,127.93,127.9,38.27644365]
[1741575648139,0.03,127.98,127.93,18.64964886]
[1741575648308,0.03,127.98,127.95,38.27644365]
[1741575648510,0.03,127.98,127.95,350.27644365]
[1741575649940,58.27644365,127.97,127.94,175.93974175]
[1741575651414,20.0,127.97,127.94,175.93974175]
[1741575652134,38.27644365,127.95,127.91,81.49974175]
[1741575652922,58.27644365,127.94,127.91,81.49974175]
[1741575653125,20.0,127.94,127.91,81.49974175]
[1741575653314,27.8162,127.94,127.91,81.49974175]
[1741575653719,20.0,127.94,127.91,81.49974175]
[1741575653926,27.8163,127.94,127.91,81.49974175]
[1741575654140,38.27644365,127.93,127.89,7.44]
[1741575654319,27.8163,127.94,127.89,7.44]
[1741575654320,38.27644365,127.92,127.89,7.44]
[1741575654646,38.27644365,127.91,127.88,194.4366]
[1741575654814,58.27644365,127.89,127.88,0.063]
[1741575655144,66.09564365,127.89,127.88,0.063]
[1741575657316,92.18529251,127.89,127.88,0.063]
[1741575657952,73.53564365,127.89,127.83,0.505]
[1741575658243,38.27644365,127.87,127.83,0.505]
[1741575658618,38.27644365,127.86,127.83,0.505]
[1741575659935,58.27644365,127.87,127.83,8.3276]
[1741575660836,44.44664365,127.92,127.84,38.27644365]
[1741575661037,90.2168,127.93,127.86,38.27644365]
[1741575661228,38.27644365,127.91,127.86,38.27644365]
[1741575661431,38.27644365,127.91,127.85,56.92609251]
[1741575661634,38.27644365,127.91,127.86,46.09744365]
[1741575662140,38.27644365,127.9,127.86,7.821]
[1741575662450,58.27644365,127.89,127.85,7.8216]
[1741575662634,38.27644365,127.88,127.84,168.49974175]
[1741575662946,38.27644365,127.85,127.83,8.008]
[1741575663125,38.27644365,127.85,127.83,0.568]
[1741575663521,38.27644365,127.84,127.83,0.568]
[1741575663941,58.27644365,127.85,127.83,0.568]
[1741575664333,20.0,127.85,127.83,0.568]
[1741575664537,38.27644365,127.84,127.83,0.568]
[1741575666950,38.27644365,127.85,127.83,0.568]
[1741575667950,38.27644365,127.84,127.83,0.568]
[1741575668469,58.27644365,127.85,127.83,0.568]
[1741575668624,20.0,127.86,127.83,8.3907]
[1741575668827,58.27644365,127.86,127.83,0.568]
[1741575669446,20.0,127.86,127.83,8.3907]
[1741575669958,38.27644365,127.9,127.85,38.27644365]
[1741575670170,38.27644365,127.89,127.84,38.27644365]
[1741575670346,38.27644365,127.88,127.83,216.7195854]
[1741575670735,38.27644365,127.87,127.83,176.89044175]
[1741575671038,38.27644365,127.87,127.83,169.06774175]
[1741575671440,38.27644365,127.87,127.83,176.89044175]
[1741575671951,20.0,127.87,127.85,7.8216]
[1741575672458,38.27644365,127.9,127.85,46.09804365]
[1741575672756,38.27644365,127.9,127.85,7.8216]
[1741575672927,38.27644365,127.89,127.85,7.8216]
[1741575673357,38.27644365,127.89,127.84,7.822]
[1741575673958,38.27644365,127.87,127.83,481.06774175]
[1741575674647,38.27644365,127.87,127.83,169.06774175]
[1741575675765,38.27644365,127.85,127.83,0.568]
[1741575676632,20.0,127.84,127.83,0.568]
[1741575677341,20.03,127.88,127.83,46.66724365]
[1741575677541,20.03,127.88,127.84,38.27644365]
[1741575677874,38.27644365,127.87,127.83,0.568]
[1741575678061,38.27644365,127.87,127.83,8.3907]
[1741575678956,0.03,127.88,127.83,8.3907]
[1741575678957,38.30644365,127.88,127.83,8.3907]
[1741575679168,7.8193,127.89,127.83,8.3907]
[1741575679169,20.0,127.86,127.84,38.27644365]
[1741575679770,20.0,127.86,127.83,46.66714365]
[1741575680367,20.0,127.86,127.83,8.3907]
[1741575680570,38.27644365,127.87,127.83,8.3907]
[1741575681465,38.27644365,127.89,127.83,46.66714365]
[1741575681669,90.2182,127.91,127.84,38.27644365]
[1741575681878,38.27644365,127.92,127.87,38.27644365]
[1741575682041,38.30644365,127.93,127.88,38.27644365]
[1741575682241,0.03,127.93,127.88,38.27644365]
[1741575682465,0.03,127.93,127.89,46.09564365]
[1741575683368,38.30644365,127.93,127.87,46.09684365]
[1741575683671,58.27644365,127.92,127.87,46.09684365]
[1741575683968,58.27644365,127.92,127.86,233.24663426]
[1741575684170,38.27644365,127.91,127.86,46.09724365]
[1741575684467,58.27644365,127.92,127.86,46.09724365]
[1741575684842,66.09384365,127.92,127.86,358.09724365]
[1741575685078,66.09394365,127.92,127.86,358.09724365]
[1741575685252,38.27644365,127.91,127.86,38.27644365]
[1741575685457,27.8175,127.92,127.84,170.14174175]
[1741575685458,38.27644365,127.89,127.84,170.14174175]
[1741575685656,38.27644365,127.86,127.83,7.988]
[1741575685959,38.27644365,127.85,127.83,0.568]
[1741575686163,58.27644365,127.86,127.83,0.568]
[1741575686547,38.27644365,127.85,127.83,0.568]
[1741575686842,58.27644365,127.86,127.83,0.568]
[1741575687665,20.0,127.86,127.83,46.66724365]
[1741575687878,38.27644365,127.89,127.84,38.27644365]
[1741575688383,38.27644365,127.88,127.83,527.1669854]
[1741575688844,0.03,127.88,127.83,527.1669854]
[1741575689048,38.30644365,127.88,127.83,215.1669854]
[1741575689272,38.30644365,127.88,127.83,176.89054175]
[1741575689454,58.27644365,127.87,127.83,176.89054175]
[1741575689658,20.0,127.87,127.83,215.1669854]
[1741575690091,0.03,127.88,127.83,234.7241854]
[1741575690275,38.30644365,127.88,127.83,234.7241854]
[1741575690446,38.30644365,127.88,127.84,38.27644365]
[1741575690447,0.03,127.88,127.84,38.27644365]
[1741575690753,0.03,127.88,127.84,39.91354365]
[1741575690974,0.03,127.88,127.85,65.65214365]
[1741575691159,0.03,127.88,127.86,38.27644365]
[1741575691467,0.03,127.88,127.85,7.8216]
[1741575691672,0.03,127.88,127.85,46.09804365]
[1741575692068,0.03,127.88,127.85,65.65214365]
[1741575692376,0.03,127.88,127.86,38.27644365]
[1741575692675,0.03,127.88,127.87,38.27644365]
[1741575692887,0.03,127.88,127.87,56.92609251]
[1741575693049,0.03,127.88,127.87,233.24623426]
[1741575693875,0.03,127.88,127.87,214.5965854]
[1741575694070,0.03,127.88,127.87,176.32014175]
[1741575695171,0.03,127.88,127.87,214.5965854]
[1741575695378,0.03,127.88,127.87,176.32014175]
[1741575695578,0.03,127.88,127.87,214.5965854]
[1741575695756,0.03,127.88,127.87,545.24623426]
[1741575697859,20.0,127.92,127.88,18.64964886]
[1741575698064,0.03,127.93,127.9,38.27644365]
[1741575698280,0.03,127.93,127.89,45.69644365]
[1741575699778,0.03,127.93,127.9,38.27644365]
[1741575700169,0.03,127.93,127.91,7.8179]
[1741575700367,0.03,127.93,127.91,46.09434365]
[1741575700569,0.03,127.93,127.92,38.27644365]
[1741575702263,0.03,127.93,127.92,46.09374365]
[1741575702470,0.03,127.93,127.91,7.8177]
[1741575702663,0.03,127.93,127.9,47.69474365]
[1741575703383,0.03,127.93,127.91,38.27644365]
[1741575703590,0.03,127.93,127.9,9.4183]
[1741575703763,0.03,127.93,127.91,38.27644365]
[1741575704272,0.03,127.93,127.91,46.09434365]
[1741575704470,0.03,127.93,127.92,18.64964886]
[1741575704660,0.03,127.93,127.92,38.27644365]
[1741575705566,0.03,127.93,127.92,350.27644365]
[1741575705767,0.03,127.93,127.91,176.31744175]
[1741575705954,0.03,127.93,127.91,214.5938854]
[1741575707059,0.03,127.93,127.92,38.27644365]
[1741575707253,0.03,127.93,127.91,214.5938854]
[1741575708087,0.03,127.93,127.92,38.27644365]
[1741575710281,0.03,127.93,127.92,46.09374365]
[1741575711267,0.03,127.93,127.92,64.74339251]
[1741575712370,0.03,127.93,127.92,46.09374365]
[1741575712868,0.03,127.93,127.92,7.8173]
[1741575713261,0.03,127.93,127.9,87.0]
[1741575713461,58.30644365,127.93,127.88,7.8195]
[1741575713787,58.30644365,127.93,127.88,46.09594365]
[1741575714686,58.30644365,127.93,127.88,7.8195]
[1741575715194,20.03,127.93,127.88,46.09594365]
[1741575715489,58.30644365,127.93,127.88,46.09594365]
[1741575716295,20.03,127.93,127.89,38.27644365]
[1741575716784,20.03,127.93,127.89,46.09504365]
[1741575717586,20.03,127.93,127.89,7.8186]
[1741575717776,58.30644365,127.93,127.89,7.8186]
[1741575718284,20.03,127.93,127.89,7.8186]
[1741575718993,58.30644365,127.93,127.89,7.8186]
[1741575720098,20.03,127.93,127.89,46.09504365]
[1741575720290,20.03,127.93,127.89,7.8186]
[1741575720485,20.03,127.93,127.89,31.72498635]
[1741575720690,20.03,127.93,127.91,23.90638635]
[1741575721092,0.03,127.93,127.92,7.8173]
[1741575721288,0.03,127.93,127.9,23.90638635]
[1741575721591,0.03,127.93,127.9,31.72498635]
[1741575721985,0.03,127.93,127.91,23.90638635]
[1741575722191,0.03,127.93,127.9,23.90638635]
[1741575723079,0.03,127.93,127.9,31.72458635]
[1741575723892,23.93638635,127.93,127.89,176.31884175]
[1741575724603,20.0,127.92,127.91,23.90638635]
[1741575724771,20.03,127.93,127.91,23.90638635]
[1741575724966,0.03,127.93,127.91,23.90638635]
[1741575725168,0.03,127.93,127.92,31.72368635]
[1741575726776,0.03,127.93,127.92,23.90638635]
[1741575726979,0.03,127.93,127.9,31.72468635]
[1741575727195,43.90638635,127.92,127.88,0.063]
[1741575727504,23.90638635,127.91,127.88,0.063]
[1741575727995,23.90638635,127.92,127.88,7.8827]
[1741575728387,23.90638635,127.92,127.88,0.063]
[1741575729403,31.72388635,127.92,127.88,0.063]
[1741575729804,43.90638635,127.89,127.88,0.063]
[1741575731790,20.0,127.89,127.88,0.063]
[1741575731988,39.77828635,127.93,127.88,0.063]
[1741575732303,20.0,127.9,127.88,0.063]
[1741575732500,23.90638635,127.89,127.88,0.063]
[1741575733204,43.90638635,127.89,127.88,0.063]
[1741575733500,20.0,127.89,127.88,0.063]
[1741575734201,23.90638635,127.92,127.88,0.063]
[1741575734506,20.0,127.9,127.88,0.063]
[1741575734684,43.90638635,127.9,127.88,0.063]
[1741575735317,43.90638635,127.89,127.88,0.063]
[1741575735611,23.90638635,127.89,127.88,0.063]
[1741575736182,43.90638635,127.89,127.88,0.063]
[1741575737613,20.0,127.89,127.88,0.063]
[1741575738587,43.90638635,127.89,127.88,0.063]
[1741575738786,106.30638635,127.89,127.88,0.063]
[1741575739498,114.12558635,127.89,127.88,0.063]
[1741575739698,138.86683521,127.89,127.88,0.063]
[1741575739897,147.90623521,127.89,127.88,0.063]
[1741575740907,20.0,127.86,127.83,0.568]
[1741575741101,20.0,127.85,127.83,0.568]
[1741575741415,20.0,127.84,127.83,0.568]
[1741575742309,7.8208,127.87,127.83,0.568]
[1741575742310,23.90638635,127.87,127.83,0.568]
[1741575742711,23.90638635,127.86,127.83,0.568]
[1741575743214,20.0,127.84,127.83,0.568]
[1741575743819,27.8222,127.84,127.83,0.568]
[1741575744206,23.90638635,127.84,127.83,0.568]
[1741575744514,43.90638635,127.84,127.83,0.568]
[1741575745507,27.8222,127.84,127.83,0.568]
[1741575745709,51.72858635,127.84,127.83,0.568]
[1741575746922,20.0,127.84,127.83,0.568]
[1741575747618,43.90638635,127.84,127.83,0.568]
[1741575748126,20.0,127.84,127.83,0.568]
[1741575748327,20.0,127.84,127.83,8.3908]
[1741575748544,23.90638635,127.88,127.83,32.29718635]
[1741575748823,0.03,127.89,127.85,31.72798635]
[1741575749022,20.0,127.87,127.85,31.72798635]
[1741575749223,20.0,127.87,127.85,7.8216]
[1741575749919,20.0,127.84,127.83,0.568]
[1741575750510,19.60902373,127.84,127.83,0.568]
[1741575751111,51.33761008,127.84,127.83,0.568]
[1741575751310,43.51541008,127.84,127.83,0.568]
[1741575751525,38.19868635,127.86,127.83,0.568]
[1741575752025,23.90638635,127.85,127.83,0.568]
[1741575753231,20.0,127.84,127.83,0.568]
[1741575759931,20.03,127.84,127.83,0.568]
[1741575760910,43.93638635,127.84,127.83,0.568]
[1741575761614,51.75858635,127.84,127.83,0.568]
[1741575762639,70.40823521,127.84,127.83,0.568]
[1741575762845,43.93638635,127.84,127.83,0.568]
[1741575763920,51.75858635,127.84,127.83,0.568]
[1741575764322,70.40823521,127.84,127.83,0.568]
[1741575765144,51.75858635,127.84,127.83,0.568]
[1741575765454,78.27723521,127.84,127.83,0.568]
[1741575772993,78.27723521,127.84,127.82,0.063]
[1741575773270,23.90638635,127.83,127.82,0.063]
[1741575773753,124.95603521,127.83,127.82,0.063]
[1741575775054,132.77883521,127.83,127.82,0.063]
[1741575776151,20.0,127.79,127.76,0.505]
[1741575776370,15.34183468,127.77,127.76,0.505]
[1741575776867,31.15443468,127.77,127.76,0.505]
[1741575777162,49.80408354,127.77,127.76,0.505]
[1741575778274,58.44198092,127.77,127.76,0.505]